bitfinex-derivatives/quotes_ETHF0:USTF0_20250405
["timestamp","ask_amount","ask_price","bid_price","bid_amount"]
[1743887198343,3.9125,1786.5,1786.3,3.99182]
[1743887198545,2.8174,1786.4,1786.3,3.99182]
[1743887198940,2.8174,1786.4,1786.3,7.71382]
[1743887208248,6.0252,1786.4,1786.2,0.0819]
[1743887208446,6.7629,1786.3,1786.2,0.86598]
[1743887208748,6.7629,1786.3,1786.1,0.7841]
[1743887208950,3.7571,1786.2,1786.1,0.7841]
[1743887214354,3.7571,1786.2,1786.1,4.713]
[1743887217155,3.7571,1786.2,1786.1,0.7841]
[1743887218353,3.7571,1786.2,1786.1,4.7399]
[1743887219554,3.7571,1786.2,1786.1,0.7841]
[1743887220956,3.0058,1786.3,1786.2,0.78408]
[1743887221157,2.8174,1786.4,1786.3,0.78404]
[1743887221453,5.7253,1786.4,1786.2,0.78405]
[1743887221755,3.5856,1786.3,1786.2,0.78405]
[1743887224461,3.5856,1786.3,1786.2,4.37525]
[1743887226872,3.5856,1786.3,1786.2,4.69335]
[1743887229470,3.5856,1786.3,1786.2,0.3181]
[1743887229668,6.7934,1786.3,1786.0,0.0819]
[1743887229874,3.99192,1786.1,1786.0,0.0819]
[1743887230470,6.87592,1786.1,1786.0,0.0819]
[1743887230675,9.37592,1786.1,1786.0,0.0819]
[1743887230866,13.47792,1786.1,1786.0,0.0819]
[1743887234166,10.97792,1786.1,1786.0,0.0819]
[1743887237677,6.87592,1786.1,1786.0,0.0819]
[1743887238080,10.50532,1786.1,1786.0,0.0819]
[1743887244377,13.00532,1786.1,1786.0,0.0819]
[1743887244876,0.78426,1785.8,1785.7,0.00838809]
[1743887245182,8.09206,1785.8,1785.7,0.00838809]
[1743887246280,10.93506,1785.8,1785.7,0.00838809]
[1743887259590,3.2078,1785.8,1785.7,0.79268809]
[1743887259784,3.2078,1786.0,1785.8,0.78423]
[1743887259985,3.2078,1786.0,1785.9,4.47181]
[1743887260184,3.99197,1786.0,1785.9,3.6876]
[1743887261087,0.78426,1785.8,1785.7,2.83218809]
[1743887261290,3.99206,1785.8,1785.7,2.83218809]
[1743887261481,3.99206,1785.8,1785.7,0.00838809]
[1743887261676,10.65596,1785.8,1785.7,0.00838809]
[1743887262790,3.99206,1785.8,1785.7,0.00838809]
[1743887262991,3.99206,1785.8,1785.7,3.77678809]
[1743887263391,3.99206,1785.8,1785.7,4.56108809]
[1743887263591,3.99206,1785.8,1785.7,3.77678809]
[1743887266296,7.60036,1785.8,1785.7,3.77678809]
[1743887268899,3.2078,1785.8,1785.7,4.56108809]
[1743887269098,3.88114,1785.9,1785.7,4.56108809]
[1743887269295,3.88114,1785.9,1785.8,3.9171]
[1743887269495,3.88114,1785.9,1785.8,4.70136]
[1743887269701,3.88114,1785.9,1785.8,3.9171]
[1743887270102,7.67984,1785.9,1785.8,3.9171]
[1743887275405,7.67984,1785.9,1785.8,4.70136]
[1743887277009,6.8956,1785.9,1785.8,4.70136]
[1743887278206,6.98131,1786.0,1785.8,4.70136]
[1743887278407,3.2078,1786.0,1785.9,4.68051]
[1743887279010,3.2078,1786.0,1785.9,7.64591]
[1743887283004,7.1536,1786.2,1785.9,6.8617]
[1743887283206,7.1536,1786.2,1786.1,0.78412]
[1743887283408,3.2078,1786.4,1786.3,0.78404]
[1743887284517,6.217,1786.4,1786.3,0.78404]
[1743887285321,3.2078,1786.4,1786.3,0.78404]
[1743887285722,3.2078,1786.4,1786.3,3.85214]
[1743887286421,3.2078,1786.4,1786.3,0.78404]
[1743887286721,0.78407,1786.3,1786.1,0.7841]
[1743887286922,3.7837,1786.2,1786.1,0.7841]
[1743887287124,3.7837,1786.2,1786.0,3.6257]
[1743887287125,0.78412,1786.1,1786.0,3.6257]
[1743887287321,0.78418,1786.0,1785.8,0.78423]
[1743887287514,5.876,1785.9,1785.8,0.78423]
[1743887287719,6.66021,1785.9,1785.7,7.62615809]
[1743887287924,3.7837,1785.8,1785.7,7.62615809]
[1743887290419,6.9915,1785.8,1785.7,4.41835809]
[1743887290825,3.7837,1785.8,1785.7,4.41835809]
[1743887294328,5.876,1785.9,1785.8,0.78426]
[1743887295525,9.4702,1785.9,1785.8,0.78426]
[1743887296325,10.25442,1785.9,1785.7,4.41835809]
[1743887296533,3.5942,1785.8,1785.7,0.79265809]
[1743887301830,6.66022,1785.9,1785.7,0.00838809]
[1743887301831,5.876,1785.9,1785.7,0.00838809]
[1743887302037,2.868,1785.9,1785.8,0.78426]
[1743887302235,3.2078,1786.0,1785.9,0.78421]
[1743887302437,6.0439,1786.0,1785.8,3.6805]
[1743887302638,13.4721,1786.0,1785.8,4.46474]
[1743887302838,3.7378,1785.9,1785.8,4.46474]
[1743887304537,4.52201,1785.9,1785.8,4.46474]
[1743887305139,4.52201,1785.9,1785.8,4.46476]
[1743887305340,4.52201,1785.9,1785.8,0.78426]
[1743887305737,8.9501,1786.0,1785.9,0.78421]
[1743887306249,8.9501,1786.0,1785.8,0.78423]
[1743887306636,3.7689,1785.9,1785.8,0.78423]
[1743887310747,7.2898,1786.2,1786.1,0.78412]
[1743887311047,10.1334,1786.2,1786.1,0.78412]
[1743887311246,2.8436,1786.2,1786.1,0.78412]
[1743887311548,2.8436,1786.2,1786.0,0.78414]
[1743887311744,6.583,1786.2,1786.0,0.78414]
[1743887312045,7.36709,1786.2,1786.1,0.78412]
[1743887312538,7.36709,1786.2,1786.0,0.78414]
[1743887312950,4.52354,1786.1,1785.9,4.58548]
[1743887313143,3.7394,1786.0,1785.9,4.58548]
[1743887320150,3.2078,1786.1,1786.0,0.78417]
[1743887320351,6.5047,1786.2,1786.1,0.78412]
[1743887320553,6.0504,1786.3,1786.2,0.78408]
[1743887321347,6.0504,1786.3,1786.2,3.8806]
[1743887321544,6.83444,1786.3,1786.2,3.8806]
[1743887321747,6.0504,1786.3,1786.2,4.66468]
[1743887323555,2.8426,1786.3,1786.2,4.66468]
[1743887323955,3.6507,1786.4,1786.3,0.78404]
[1743887324156,3.6507,1786.4,1786.3,4.65624]
[1743887327755,3.6507,1786.4,1786.3,0.78404]
[1743887328354,4.43469,1786.4,1786.3,0.78404]
[1743887328558,4.43471,1786.4,1786.2,0.78406]
[1743887328758,6.4154,1786.3,1786.2,0.78406]
[1743887330364,0.78412,1786.2,1786.0,0.78416]
[1743887330659,3.87532,1786.1,1786.0,0.78416]
[1743887331062,3.0912,1786.1,1786.0,0.78416]
[1743887331458,6.7016,1786.1,1786.0,0.78416]
[1743887335863,7.48572,1786.1,1786.0,0.78416]
[1743887336067,7.48572,1786.1,1785.9,0.78418]
[1743887336263,6.9687,1786.0,1785.9,0.78418]
[1743887337166,3.0912,1786.1,1786.0,0.78417]
[1743887337966,3.0912,1786.1,1786.0,4.50337]
[1743887339266,6.9687,1786.2,1786.1,0.78412]
[1743887339461,6.9687,1786.2,1786.1,4.48632]
[1743887340271,3.0305,1786.2,1786.1,4.48632]
[1743887340962,6.5976,1786.2,1786.1,4.48632]
[1743887342266,3.0305,1786.2,1786.1,4.48632]
[1743887342467,2.8054,1786.3,1786.2,0.78408]
[1743887342769,2.8054,1786.3,1786.2,4.47888]
[1743887343163,3.2078,1786.4,1786.3,0.78404]
[1743887343363,3.99179,1786.4,1786.2,0.78405]
[1743887343568,3.7316,1786.3,1786.2,0.78405]
[1743887346171,3.7316,1786.3,1786.1,0.78409]
[1743887346373,3.79941,1786.2,1786.0,0.78416]
[1743887346674,6.8472,1786.1,1786.0,0.78417]
[1743887346969,8.06278,1786.5,1785.9,6.03151]
[1743887347275,10.56129,1786.4,1786.2,0.78404]
[1743887347669,10.56129,1786.4,1786.2,4.51174]
[1743887348375,10.56129,1786.4,1786.3,0.78404]
[1743887349070,9.7773,1786.4,1786.3,0.78404]
[1743887349667,10.56129,1786.4,1786.3,0.78404]
[1743887349874,10.56129,1786.4,1786.2,3.7277]
[1743887349875,10.56129,1786.4,1786.2,4.51175]
[1743887350173,10.56129,1786.4,1786.3,0.78404]
[1743887350573,9.7773,1786.4,1786.3,0.78404]
[1743887352175,10.56129,1786.4,1786.3,0.78404]
[1743887352473,9.7773,1786.4,1786.3,0.78404]
[1743887352674,0.78407,1786.3,1786.1,0.78409]
[1743887352976,3.2078,1786.2,1786.1,0.78409]
[1743887353367,6.9992,1786.2,1786.1,0.78409]
[1743887355375,3.7914,1786.2,1786.1,0.78409]
[1743887356473,3.7914,1786.2,1786.0,3.7709]
[1743887356474,4.57548,1786.2,1786.0,3.7709]
[1743887356775,3.004,1786.1,1786.0,4.55503]
[1743887356976,6.7971,1786.1,1786.0,4.55503]
[1743887357478,6.7971,1786.1,1786.0,0.78413]
[1743887363278,0.78405,1786.3,1786.2,0.78408]
[1743887363482,6.6309,1786.3,1785.9,6.1982]
[1743887363781,0.78409,1786.2,1786.1,0.78412]
[1743887363981,4.40539,1786.2,1786.1,0.78412]
[1743887364183,4.40539,1786.2,1786.0,3.6282]
[1743887364483,3.6213,1786.1,1786.0,4.41237]
[1743887364882,3.6213,1786.1,1785.9,0.78418]
[1743887365182,5.8771,1786.0,1785.9,0.78418]
[1743887365579,9.6118,1786.0,1785.9,0.78418]
[1743887365779,9.6118,1786.0,1785.9,4.65468]
[1743887367576,9.6118,1786.0,1785.8,0.78423]
[1743887367779,3.7347,1785.9,1785.8,0.78423]
[1743887368476,3.7347,1785.9,1785.8,4.35293]
[1743887370778,5.8771,1786.0,1785.9,0.78421]
[1743887370974,5.8771,1786.0,1785.9,4.35291]
[1743887373779,3.6237,1786.1,1786.0,0.78417]
[1743887374083,4.40782,1786.1,1785.9,0.78417]
[1743887374583,3.8906,1786.0,1785.9,0.78417]
[1743887374882,9.98131,1786.2,1786.0,0.78413]
[1743887375074,3.8257,1786.1,1786.0,0.78413]
[1743887376180,3.8257,1786.1,1786.0,4.57953]
[1743887376584,3.2078,1786.2,1786.1,0.78412]
[1743887376786,3.2078,1786.2,1786.1,9.90992]
[1743887377179,3.8257,1786.4,1786.3,0.78404]
[1743887381989,3.2078,1786.5,1786.4,0.78399]
[1743887382188,7.0231,1786.5,1786.4,0.78399]
[1743887396406,7.80705,1786.5,1786.4,0.78399]
[1743887397511,7.0231,1786.5,1786.4,0.78399]
[1743887398511,7.80705,1786.5,1786.4,0.78399]
[1743887399809,7.80705,1786.5,1786.3,0.784]
[1743887400009,3.793,1786.4,1786.3,0.784]
[1743887402510,3.793,1786.4,1786.2,4.57945]
[1743887402712,6.78914,1786.3,1786.2,4.57945]
[1743887403111,6.0051,1786.3,1786.2,4.57945]
[1743887403513,9.7646,1786.3,1786.2,4.57945]
[1743887405418,9.7646,1786.3,1786.2,0.78405]
[1743887424119,13.75644,1786.3,1786.2,0.78408]
[1743887424323,12.9724,1786.3,1786.2,0.78408]
[1743887425624,12.9724,1786.3,1786.2,0.75328]
[1743887426021,9.7646,1786.3,1786.2,0.75328]
[1743887426234,12.9724,1786.3,1786.2,0.75328]
[1743887427023,9.7646,1786.3,1786.2,0.75328]
[1743887427327,3.2078,1786.5,1786.4,0.78399]
[1743887427827,3.2078,1786.5,1786.3,0.78401]
[1743887428126,9.5994,1786.4,1786.3,0.78401]
[1743887430825,9.5994,1786.4,1786.3,4.50021]
[1743887439238,9.5994,1786.4,1786.3,0.78401]
[1743887448042,9.5994,1786.4,1786.3,0.78404]
[1743887448438,9.5994,1786.4,1786.2,0.78405]
[1743887448637,3.6443,1786.3,1786.2,0.78405]
[1743887461764,9.0166,1786.4,1786.3,0.78404]
[1743887462152,9.0166,1786.4,1786.2,0.78404]
[1743887462353,3.7413,1786.3,1786.2,0.78404]
[1743887463668,6.2413,1786.3,1785.7,17.86753602]
[1743887463959,3.2078,1786.0,1785.9,0.7842]
[1743887464352,3.99198,1786.0,1785.8,0.78422]
[1743887464555,10.42202,1785.9,1785.7,9.52600602]
[1743887464862,7.78706,1785.8,1785.7,8.74173602]
[1743887466162,7.0028,1785.8,1785.7,9.52603602]
[1743887466559,7.78706,1785.8,1785.7,8.74173602]
[1743887467168,7.0028,1785.8,1785.7,9.52603602]
[1743887467865,7.0028,1785.8,1785.7,0.79268809]
[1743887468768,7.78706,1785.8,1785.7,0.00838809]
[1743887469669,7.0028,1785.8,1785.7,0.79268809]
[1743887470164,3.795,1785.8,1785.7,0.79268809]
[1743887473266,3.795,1785.8,1785.7,0.00838809]
[1743887473267,4.57926,1785.8,1785.7,0.00838809]
[1743887474874,4.57926,1785.8,1785.7,0.79268809]
[1743887475373,3.795,1785.8,1785.7,0.79268809]
[1743887476274,4.57926,1785.8,1785.7,0.79268809]
[1743887477475,7.78706,1785.8,1785.7,0.00838809]
[1743887478277,11.82306,1785.8,1785.7,0.00838809]
[1743887496394,8.61526,1785.8,1785.7,0.00838809]
[1743887502097,11.82306,1785.8,1785.7,0.00838809]
[1743887503092,7.78706,1785.8,1785.7,0.00838809]
[1743887503298,3.99206,1785.8,1785.7,3.82768809]
[1743887504586,3.2078,1786.0,1785.7,3.82768809]
[1743887504794,3.99199,1786.0,1785.8,0.78422]
[1743887505090,3.99199,1786.0,1785.9,3.8193]
[1743887505290,7.70519,1786.0,1785.9,3.8193]
[1743887506052,6.921,1786.0,1785.9,4.60351]
[1743887506230,7.70517,1786.0,1785.9,4.60351]
[1743887508104,7.70517,1786.0,1785.9,3.8193]
[1743887511598,4.49737,1786.0,1785.9,3.8193]
[1743887511800,7.70517,1786.0,1785.9,3.8193]
[1743887512102,7.70517,1786.0,1785.9,4.60351]
[1743887514107,7.70517,1786.0,1785.9,3.8193]
[1743887514303,7.70517,1786.0,1785.9,4.60351]
[1743887518106,4.49737,1786.0,1785.9,4.60351]
[1743887518307,7.70517,1786.0,1785.9,4.60351]
[1743887519909,6.921,1786.0,1785.9,0.78421]
[1743887520607,3.2078,1786.0,1785.9,0.78421]
[1743887520910,5.8053,1786.1,1786.0,0.78417]
[1743887521906,9.7015,1786.1,1786.0,0.78417]
[1743887522809,3.2078,1786.4,1786.3,0.78404]
[1743887523397,3.2078,1786.4,1786.3,4.51194]
[1743887524510,3.8962,1786.5,1786.4,0.78399]
[1743887524808,5.7104,1786.6,1786.5,0.78395]
[1743887525010,9.5488,1786.6,1786.5,0.78395]
[1743887527526,5.7104,1786.6,1786.5,0.78395]
[1743887527709,3.2078,1786.7,1786.6,0.7839]
[1743887528011,3.2078,1786.7,1786.6,4.5512]
[1743887528613,2.96488809,1786.8,1786.7,0.78386]
[1743887528809,0.00838809,1786.8,1786.7,4.55116]
[1743887529009,0.00838809,1786.8,1786.7,7.75896]
[1743887529914,6.0352,1787.1,1786.7,10.25896]
[1743887530108,23.13768756,1787.2,1787.1,0.78368]
[1743887530916,4.68972,1787.5,1787.3,0.78359]
[1743887531110,3.9062,1787.4,1787.3,0.78359]
[1743887532416,4.68976,1787.4,1787.2,0.78361]
[1743887532615,0.78368,1787.1,1787.0,0.00838809]
[1743887532919,3.99148,1787.1,1787.0,0.00838809]
[1743887533215,0.78383,1786.8,1786.5,4.48982]
[1743887533411,3.2078,1786.6,1786.4,0.78397]
[1743887533606,6.5552,1786.5,1786.4,0.78397]
[1743887535025,3.21618809,1786.6,1786.5,0.78395]
[1743887535715,0.00838809,1786.6,1786.5,0.78395]
[1743887535911,0.00838809,1786.6,1786.5,4.50865]
[1743887538315,0.00838809,1786.6,1786.5,7.57195]
[1743887540221,0.78396,1786.5,1786.3,0.00838809]
[1743887540513,6.6999,1786.5,1786.4,0.78399]
[1743887540710,7.48386,1786.5,1786.3,0.79239809]
[1743887540916,7.57099,1786.4,1786.3,0.00838809]
[1743887541219,6.787,1786.4,1786.3,0.79242809]
[1743887541717,7.57099,1786.4,1786.3,0.00838809]
[1743887543218,6.787,1786.4,1786.3,0.00838809]
[1743887543522,6.787,1786.4,1786.3,0.79242809]
[1743887546421,2.9126,1786.5,1786.4,0.78399]
[1743887546622,9.5551,1786.5,1786.4,0.78399]
[1743887547624,0.00838809,1786.6,1786.5,0.78395]
[1743887547823,0.00838809,1786.6,1786.5,7.24525]
[1743887548020,0.00838809,1786.6,1786.5,9.74525]
[1743887548818,0.00838809,1786.6,1786.5,7.24525]
[1743887550727,0.00838809,1786.6,1786.5,10.45305]
[1743887550925,3.2078,1787.2,1786.7,1.95958]
[1743887551225,6.0367,1787.4,1787.3,0.7836]
[1743887551426,2.9785,1787.5,1787.4,0.78355]
[1743887551620,6.6482,1787.5,1787.4,0.78355]
[1743887552423,6.6482,1787.5,1787.4,4.68495]
[1743887556937,6.6482,1787.5,1787.4,0.78355]
[1743887557128,7.43173,1787.5,1787.3,0.79194809]
[1743887557334,3.7764,1787.4,1787.3,0.79194809]
[1743887587452,4.55995,1787.4,1787.3,0.00838809]
[1743887587656,8.23533,1787.4,1786.7,2.9684]
[1743887587955,10.1903,1787.5,1786.9,0.78377]
[1743887587956,3.2078,1787.0,1786.9,0.78377]
[1743887588450,12.8639,1787.0,1786.9,0.78377]
[1743887588643,12.8639,1787.0,1786.8,0.78378]
[1743887588644,0.78377,1786.9,1786.8,0.78378]
[1743887588847,3.8693,1786.9,1786.8,0.79216809]
[1743887590053,4.65307,1786.9,1786.8,0.79216809]
[1743887591154,3.8693,1786.9,1786.8,0.79216809]
[1743887591657,4.65307,1786.9,1786.8,0.79216809]
[1743887592151,4.65307,1786.9,1786.8,0.00838809]
[1743887593650,3.8693,1786.9,1786.8,0.79220809]
[1743887593850,4.65307,1786.9,1786.8,0.00838809]
[1743887594257,9.1405,1787.0,1786.8,0.00838809]
[1743887594451,9.1405,1787.0,1786.9,0.78377]
[1743887594755,5.9327,1787.0,1786.9,0.78377]
[1743887594951,3.2078,1787.2,1786.9,3.792]
[1743887595152,0.78371,1787.1,1786.9,0.78375]
[1743887595352,3.5734,1787.0,1786.9,0.78375]
[1743887596354,8.8715,1787.2,1787.1,0.78368]
[1743887597057,12.4449,1787.2,1787.1,0.78368]
[1743887597358,13.22854,1787.2,1787.0,0.78369]
[1743887597956,12.4449,1787.2,1787.1,0.78368]
[1743887600460,13.22854,1787.2,1787.0,4.4536]
[1743887600660,4.56218,1787.1,1786.9,0.78374]
[1743887600864,3.7785,1787.0,1786.9,0.78374]
[1743887601963,8.8715,1787.2,1787.1,0.78368]
[1743887602759,3.2078,1787.2,1787.1,0.78368]
[1743887602965,9.7183,1787.3,1787.2,0.78364]
[1743887603855,9.7183,1787.3,1787.2,4.64024]
[1743887605366,2.9006,1787.3,1787.2,4.64024]
[1743887605568,6.0949,1787.4,1787.3,0.7836]
[1743887605864,6.0949,1787.4,1787.3,4.6402]
[1743887606067,10.0114,1787.4,1787.3,4.6402]
[1743887608471,10.79495,1787.4,1787.2,0.78361]
[1743887608772,3.7252,1787.3,1787.2,0.78361]
[1743887608962,4.5088,1787.3,1787.2,0.78361]
[1743887609163,4.5088,1787.3,1787.0,6.9875]
[1743887609364,3.7252,1787.2,1787.1,0.78368]
[1743887609564,3.7252,1787.2,1787.1,4.56338]
[1743887611065,3.7252,1787.2,1787.1,0.78368]
[1743887612070,3.7252,1787.2,1787.1,4.68758]
[1743887618879,6.0949,1787.4,1787.3,0.7836]
[1743887619184,10.0414,1787.4,1787.3,0.7836]
[1743887619378,10.82495,1787.4,1787.3,0.7836]
[1743887619983,0.7836,1787.3,1786.9,12.10283]
[1743887620184,4.7301,1787.3,1787.2,0.78364]
[1743887620382,4.7301,1787.3,1787.1,0.78365]
[1743887620584,4.7301,1787.3,1787.1,0.78368]
[1743887621397,0.78364,1787.2,1787.1,0.78368]
[1743887622893,4.73013,1787.3,1787.1,0.78368]
[1743887623693,4.73013,1787.3,1787.2,0.78364]
[1743887623898,4.73013,1787.3,1787.1,0.78366]
[1743887624894,4.73013,1787.3,1787.2,0.78364]
[1743887625201,3.9465,1787.3,1787.0,3.6112]
[1743887625388,3.9465,1787.3,1787.2,0.78364]
[1743887627592,3.9465,1787.3,1787.0,3.6112]
[1743887627893,2.9116,1787.2,1787.1,0.78368]
[1743887629795,2.9116,1787.2,1787.1,3.61398]
[1743887633995,6.0949,1787.4,1787.1,2.8303]
[1743887634203,11.8817,1787.4,1787.3,0.7836]
[1743887637305,8.6739,1787.4,1787.3,0.7836]
[1743887637605,11.8817,1787.4,1787.3,0.7836]
[1743887638105,8.6739,1787.4,1787.3,0.7836]
[1743887638406,11.8817,1787.4,1787.3,0.7836]
[1743887640097,12.66527,1787.4,1787.2,3.80581]
[1743887640295,11.8817,1787.4,1787.3,0.7836]
[1743887641904,3.2078,1787.4,1787.3,0.7836]
[1743887642508,6.1622,1787.4,1787.3,0.7836]
[1743887645405,3.2078,1787.4,1787.3,0.7836]
[1743887645605,3.2078,1787.4,1787.3,3.7224]
[1743887646299,5.7339,1787.5,1787.4,0.78355]
[1743887646507,5.7339,1787.5,1787.4,3.62025]
[1743887649407,8.6325,1787.5,1787.4,3.62025]
[1743887652516,7.1958,1788.2,1787.4,14.49132]
[1743887652719,8.9495,1787.9,1787.7,0.78338]
[1743887652911,2.9891,1787.8,1787.6,3.75503]
[1743887653218,2.9891,1787.8,1787.7,0.78342]
[1743887653518,5.7417,1787.9,1787.8,0.78338]
[1743887653713,5.75008809,1787.9,1787.8,0.78338]
[1743887654020,0.00838809,1787.9,1787.8,0.78338]
[1743887654314,0.00838809,1787.9,1787.8,11.81418]
[1743887657819,8.09e-06,1787.9,1787.8,11.81418]
[1743887658322,8.09e-06,1787.9,1787.8,17.73218]
[1743887661327,8.09e-06,1787.9,1787.8,15.38078]
[1743887663721,8.09e-06,1787.9,1787.8,12.88078]
[1743887664825,8.09e-06,1787.9,1787.8,15.38078]
[1743887666324,8.09e-06,1787.9,1787.8,12.88078]
[1743887667528,8.09e-06,1787.9,1787.8,9.67298]
[1743887667731,8.09e-06,1787.9,1787.8,15.38078]
[1743887668234,8.09e-06,1787.9,1787.8,12.88078]
[1743887670131,8.09e-06,1787.9,1787.8,16.86278]
[1743887676929,3.2078,1788.9,1787.8,27.9021955]
[1743887677235,6.526,1788.8,1788.7,3.99078]
[1743887677437,4.4463,1788.8,1788.7,7.97078]
[1743887678634,2.0797,1788.8,1788.7,7.97078]
[1743887679236,4.373,1788.8,1788.7,7.97078]
[1743887680140,3.2078,1789.4,1788.8,0.78294]
[1743887680438,28.35945325,1790.6,1789.7,0.78255]
[1743887680635,5.58880934,1790.3,1790.2,3.99013]
[1743887680829,5.58880934,1790.3,1789.9,1.95613]
[1743887680830,7.83530934,1790.5,1790.0,5.4017]
[1743887681031,5.58880934,1790.4,1790.0,7.1868]
[1743887681234,7.63850934,1790.4,1790.3,3.99008]
[1743887681432,2.03744967,1790.4,1790.3,3.99008]
[1743887681638,7.62625901,1790.4,1790.3,4.52821037]
[1743887683731,9.72935901,1790.4,1790.3,4.52821037]
[1743887685126,2.1031,1790.4,1790.3,4.52598279]
[1743887685335,2.2318,1791.0,1790.8,0.78203]
[1743887685632,4.46837743,1790.9,1790.8,3.98983]
[1743887685937,4.46837743,1790.9,1790.8,4.52497576]
[1743887688441,4.46837743,1790.9,1790.8,3.98983]
[1743887688739,6.37787743,1790.9,1790.8,3.98983]
[1743887688938,2.24018809,1791.0,1790.9,0.78202]
[1743887689128,6.70856552,1791.0,1790.9,4.75702]
[1743887689834,9.20856552,1791.0,1790.9,0.78202]
[1743887690138,9.20856552,1791.0,1790.8,0.78204]
[1743887690443,4.46837743,1790.9,1790.8,3.98984]
[1743887692441,10.90617743,1790.9,1790.8,3.98984]
[1743887693744,10.90617743,1790.9,1790.8,0.78204]
[1743887693943,11.68821743,1790.9,1790.4,7.1818]
[1743887694146,4.46837743,1790.8,1790.4,7.1818]
[1743887694345,1.9735,1790.7,1790.6,0.78215]
[1743887694546,6.44187743,1790.7,1790.4,3.2078]
[1743887694742,1.9735,1790.7,1790.6,0.78215]
[1743887695044,8.94187743,1790.7,1790.6,0.78215]
[1743887695244,9.72398743,1790.7,1790.5,0.78216]
[1743887695438,4.46837743,1790.6,1790.2,3.2078]
[1743887695642,2.0404,1790.5,1790.4,0.78221]
[1743887695945,6.50877743,1790.5,1790.4,0.78221]
[1743887696137,9.00877743,1790.5,1790.4,0.78224]
[1743887696339,9.00877743,1790.5,1790.3,0.78225]
[1743887696542,6.36837743,1790.4,1790.3,0.78228]
[1743887696743,8.40877743,1790.4,1790.3,0.78228]
[1743887698444,8.40877743,1790.4,1790.2,3.2078]
[1743887698642,6.44487743,1790.3,1790.2,0.7823]
[1743887698843,8.51057743,1790.3,1790.2,0.7823]
[1743887699254,11.79285743,1790.3,1790.1,0.78235]
[1743887699550,4.46837743,1790.2,1790.1,0.76171158]
[1743887699750,7.31640743,1790.2,1790.0,3.99856809]
[1743887699953,4.46837743,1790.1,1790.0,3.99856809]
[1743887700155,6.53407743,1790.1,1790.0,3.99856809]
[1743887701450,6.53407743,1790.1,1790.0,3.21618809]
[1743887701648,9.81644743,1790.1,1790.0,0.00838809]
[1743887702172,13.02424743,1790.1,1790.0,0.00838809]
[1743887702652,0.78255,1789.7,1789.5,0.7826]
[1743887702857,3.8522,1789.6,1789.4,3.99045]
[1743887703052,9.10316743,1789.6,1789.4,3.99045]
[1743887703246,4.46837743,1789.5,1789.4,0.78265]
[1743887703453,4.46837743,1789.5,1789.3,0.78269]
[1743887703454,7.19351743,1789.5,1789.3,0.78269]
[1743887703654,4.46837743,1789.4,1789.3,0.79107809]
[1743887703847,6.41087743,1789.4,1789.3,0.00838809]
[1743887704055,7.19355743,1789.4,1789.3,0.00838809]
[1743887705154,9.69355743,1789.4,1789.3,0.00838809]
[1743887705653,11.62205743,1789.4,1789.3,0.00838809]
[1743887706157,15.59705743,1789.4,1789.3,0.00838809]
[1743887707557,0.78282,1789.1,1788.9,2.0509]
[1743887707758,2.76405,1789.0,1788.8,0.78291]
[1743887708059,2.76405,1789.0,1788.6,3.2078]
[1743887708060,1.9852,1788.9,1788.7,0.78296]
[1743887708359,1.9812,1788.8,1788.7,2.83456]
[1743887708562,6.44957743,1788.8,1788.7,3.37271793]
[1743887709552,6.44957743,1788.8,1788.7,2.58975793]
[1743887709755,6.44957743,1788.8,1788.6,0.79138809]
[1743887709952,4.46837743,1788.7,1788.6,0.79138809]
[1743887710169,6.44957743,1788.7,1788.6,1.32941095]
[1743887710457,6.44957743,1788.7,1788.6,0.79138809]
[1743887711058,6.44957743,1788.7,1788.6,1.32892281]
[1743887711263,6.44957743,1788.7,1788.6,0.79138809]
[1743887711562,4.46837743,1788.7,1788.6,3.99918809]
[1743887722357,4.46837743,1788.7,1788.6,4.53670723]
[1743887722563,4.46837743,1788.7,1788.6,3.99921809]
[1743887722863,4.46837743,1788.7,1788.6,4.53708385]
[1743887723771,4.46837743,1788.7,1788.6,3.99921809]
[1743887724067,4.46837743,1788.7,1788.6,0.79141809]
[1743887724266,5.25135743,1788.7,1788.6,0.79141809]
[1743887724466,9.60735743,1788.7,1788.6,0.00838809]
[1743887726168,7.10735743,1788.7,1788.6,0.00838809]
[1743887729272,7.10735743,1788.7,1788.6,0.54962635]
[1743887729973,4.46837743,1788.7,1788.6,1.3326549]
[1743887731468,4.46837743,1788.7,1788.6,4.5404549]
[1743887733872,4.55812,1788.9,1788.7,0.78297]
[1743887734068,4.46837743,1788.8,1788.7,2.70237]
[1743887734272,4.46837743,1788.8,1788.7,3.24513496]
[1743887734477,5.25131743,1788.8,1788.7,3.24514496]
[1743887734677,5.25131743,1788.8,1788.7,2.46216496]
[1743887734864,7.14831743,1788.8,1788.7,2.46216496]
[1743887735473,7.14831743,1788.8,1788.7,2.4626092]
[1743887737177,7.14831743,1788.8,1788.7,2.46276148]
[1743887738477,7.14831743,1788.8,1788.7,0.54336148]
[1743887740884,0.78298,1788.7,1788.6,0.00838809]
[1743887741079,7.18765743,1788.7,1788.6,0.55195646]
[1743887741983,7.18765743,1788.7,1788.6,2.41125646]
[1743887742681,7.18765743,1788.7,1788.6,2.41125164]
[1743887743889,9.68765743,1788.7,1788.6,1e-08]
[1743887744380,0.78312,1788.4,1788.3,1.848]
[1743887744783,5.25149743,1788.4,1788.3,1.848]
[1743887745579,7.19109743,1788.4,1788.3,1.848]
[1743887753090,5.25149743,1788.4,1788.3,1.848]
[1743887755087,4.46837743,1788.4,1788.3,2.63116]
[1743887755792,0.00838809,1788.5,1788.4,0.78312]
[1743887755984,0.00838809,1788.5,1788.4,5.97208629]
[1743887756185,4.47676552,1788.5,1788.4,5.97208629]